Workbook

Sheet E023 IND 1
B1: COMISION COORDINADORA DE INSTITUTOS NACIONALES DE SALUD
B2: Y HOSPITALES DE ALTA ESPECIALIDAD
B3: Coordinación de Proyectos Estratégicos | E3: MATRIZ DE INDICADORES PARA RESULTADOS (MIR) 2016
E4: PP: E023 "ATENCIÓN A LA SALUD"
E6: EVOLUCIÓN EN EL PERIODO
B8: Clave entidad/unidad: NCA
B10: Entidad/unidad: INSTITUTO NACIONAL DE CARDIOLOGÍA IGNACIO CHÁVEZ
B14: 1 | C14: LINEA BASE INDICADOR | E14: INDICADOR | F14: VARIABLE 1 | G14: VARIABLE 2
C15: AÑO | E15: Porcentaje de pacientes referidos por instituciones públicas de salud a los que se les apertura expediente clínico institucional FÓRMULA: VARIABLE1 / VARIABLE2 X 100 | F15: Número de pacientes que han sido referidos por instituciones públicas de salud a los cuales se les apertura expediente clínico institucional en el periodo de evaluación | G15: Total de pacientes a los cuales se les apertura expediente clínico en el periodo de evaluación x 100
C16: 1/ | D16: 2015 | E16: =IF(G16=0,0,ROUND((F16)/G16*100,1)) -> 31.6 | F16: 85375 | G16: 270038
C17: 2/ | D17: 2009 | E17: =IF(G17=0,0,ROUND(F17/G17*100,1)) -> 0
D18: 2010 | E18: =IF(G18=0,0,ROUND(F18/G18*100,1)) -> 0
D19: 2011 | E19: 0
D20: 2012 | E20: 0
D21: 2013 | E21: 0
D22: 2014 | E22: 0
D23: 2015 | E23: 9.9 | F23: 624 | G23: 6279
D24: 2016 | E24: 12 | F24: 772 | G24: 6425
B26: 1/ | D26: Línea base del indicador registrada en el PASH 2016: año en que empieza a operar el indicador para el programa (CCINSHAE).
B27: 2/ | D27: Línea base del indicador institucional: año en que empieza a operar el indicador para la Institución.
B28: INSTRUCTIVO
B29: I. Llenar los valores de la tabla a partir del año en que la entidad comprometió el indicador (Línea base)
B30: II. Llenar todos los ejercicios fiscales posteriores al año de la línea base hasta el año 2016 con el valor de cierre de cada ejercicio fiscal; en el caso que sea un indicador nuevo registrar el valor programado.
B31: III. Los ejercicios fiscales en que no se comprometío el indicador deberán registrar un valor de cero.
D33: =E14 -> INDICADOR | F33: Breve Explicación del comportamiento del indicador y sus variables en el periodo (desde línea base)
D34: =E15 -> Porcentaje de pacientes referidos por instituciones públicas de salud a los que se les apertura expediente clínico institucionalFÓRMULA: VARIABLE1 / VARIABLE2 X 100
D49: =F14 -> VARIABLE 1 | F49: =G14 -> VARIABLE 2
D50: =F15 -> Número de pacientes que han sido referidos por instituciones públicas de salud a los cuales se les apertura expediente clínico institucional en el periodo de evaluación | F50: =G15 -> Total de pacientes a los cuales se les apertura expediente clínico en el periodo de evaluación x 100

Sheet E023 IND 2
B1: COMISION COORDINADORA DE INSTITUTOS NACIONALES DE SALUD
B2: Y HOSPITALES DE ALTA ESPECIALIDAD
B3: Coordinación de Proyectos Estratégicos | E3: MATRIZ DE INDICADORES PARA RESULTADOS (MIR) 2016
E4: PP: E023 "ATENCIÓN A LA SALUD"
E6: EVOLUCIÓN EN EL PERIODO
B8: Clave entidad/unidad: NCA
B10: Entidad/unidad: INSTITUTO NACIONAL DE CARDIOLOGÍA IGNACIO CHÁVEZ
B14: 2 | C14: LINEA BASE INDICADOR | E14: INDICADOR | F14: VARIABLE 1 | G14: VARIABLE 2
C15: AÑO | E15: Porcentaje de egresos hospitalarios por mejoría y curación FÓRMULA: VARIABLE1 / VARIABLE2 X 100 | F15: Número de egresos hospitalarios por mejoría y curación | G15: Total de egresos hospitalarios x 100
C16: 1/ | D16: 2009 | E16: =IF(G16=0,0,ROUND(F16/G16*100,1)) -> 91.5 | F16: 155162 | G16: 169666
C17: 2/ | D17: 2009 | E17: =IF(G17=0,0,ROUND(F17/G17*100,1)) -> 75.3 | F17: 4428 | G17: 5880
D18: 2010 | E18: =IF(G18=0,0,ROUND(F18/G18*100,1)) -> 82.7 | F18: 4686 | G18: 5667
D19: 2011 | E19: 86.5 | F19: 4974 | G19: 5752
D20: 2012 | E20: 89 | F20: 5029 | G20: 5650
D21: 2013 | E21: 89.4 | F21: 4979 | G21: 5569
D22: 2014 | E22: 90 | F22: 5086 | G22: 5651
D23: 2015 | E23: 87.6 | F23: 4983 | G23: 5689
D24: 2016 | E24: 82.4 | F24: 4771 | G24: 5792
B26: 1/ | D26: Línea base del indicador registrada en el PASH 2016: año en que empieza a operar el indicador para el programa (CCINSHAE).
B27: 2/ | D27: Línea base del indicador institucional: año en que empieza a operar el indicador para la Institución.
B28: INSTRUCTIVO
B29: I. Llenar los valores de la tabla a partir del año en que la entidad comprometió el indicador (Línea base)
B30: II. Llenar todos los ejercicios fiscales posteriores al año de la línea base hasta el año 2016 con el valor de cierre de cada ejercicio fiscal; en el caso que sea un indicador nuevo registrar el valor programado.
B31: III. Los ejercicios fiscales en que no se comprometío el indicador deberán registrar un valor de cero.
D33: =E14 -> INDICADOR | F33: Breve Explicación del comportamiento del indicador y sus variables en el periodo (desde línea base)
D34: =E15 -> Porcentaje de egresos hospitalarios por mejoría y curaciónFÓRMULA: VARIABLE1 / VARIABLE2 X 100 | F34: Durante el periodo se observa un crecimiento en el porcentaje de egresos por mejoría; la aplicación de procedimientos terapéuticos realizados en el servicio de hemodinamia ha permitido estos resultados, debido a la disminución de riesgo para los pacientes, lo que a su vez deriva en una recuperación más rápida.
D49: =F14 -> VARIABLE 1 | F49: =G14 -> VARIABLE 2
D50: =F15 -> Número de egresos hospitalarios por mejoría y curación | F50: =G15 -> Total de egresos hospitalarios x 100

Sheet E023 IND 3
B1: COMISION COORDINADORA DE INSTITUTOS NACIONALES DE SALUD
B2: Y HOSPITALES DE ALTA ESPECIALIDAD
B3: Coordinación de Proyectos Estratégicos | E3: MATRIZ DE INDICADORES PARA RESULTADOS (MIR) 2016
E4: PP: E023 "ATENCIÓN A LA SALUD"
E6: EVOLUCIÓN EN EL PERIODO
B8: Clave entidad/unidad: NCA
B10: Entidad/unidad: INSTITUTO NACIONAL DE CARDIOLOGÍA IGNACIO CHÁVEZ
B14: 3 | C14: LINEA BASE INDICADOR | E14: INDICADOR | F14: VARIABLE 1 | G14: VARIABLE 2
C15: AÑO | E15: Porcentaje de usuarios con percepción de satisfacción de la calidad de la atención médica ambulatoria recibida superior a 80 puntos FÓRMULA: VARIABLE1 / VARIABLE2 X 100 | F15: Número de usuarios en atención ambulatoria que manifestaron una calificación de percepción de satisfacción de la calidad de la atención recibida superior a 80 puntos | G15: Total de usuarios en atención ambulatoria encuestados x 100
C16: 1/ | D16: 2016 | E16: =IF(G16=0,0,ROUND(F16/G16*100,1)) -> 87.4 | F16: 43389 | G16: 49639
C17: 2/ | D17: 2009 | E17: =IF(G17=0,0,ROUND(F17/G17*100,1)) -> 0
D18: 2010 | E18: =IF(G18=0,0,ROUND(F18/G18*100,1)) -> 0
D19: 2011 | E19: 0
D20: 2012 | E20: 0
D21: 2013 | E21: 0
D22: 2014 | E22: 0
D23: 2015 | E23: 0
D24: 2016 | E24: 88.7 | F24: 1185 | G24: 1336
B26: 1/ | D26: Línea base del indicador registrada en el PASH 2016: año en que empieza a operar el indicador para el programa (CCINSHAE).
B27: 2/ | D27: Línea base del indicador institucional: año en que empieza a operar el indicador para la Institución.
B28: INSTRUCTIVO
B29: I. Llenar los valores de la tabla a partir del año en que la entidad comprometió el indicador (Línea base)
B30: II. Llenar todos los ejercicios fiscales posteriores al año de la línea base hasta el año 2016 con el valor de cierre de cada ejercicio fiscal; en el caso que sea un indicador nuevo registrar el valor programado.
B31: III. Los ejercicios fiscales en que no se comprometío el indicador deberán registrar un valor de cero.
D33: =E14 -> INDICADOR | F33: Breve Explicación del comportamiento del indicador y sus variables en el periodo (desde línea base)
D34: =E15 -> Porcentaje de usuarios con percepción de satisfacción de la calidad de la atención médica ambulatoria recibida superior a 80 puntos FÓRMULA: VARIABLE1 / VARIABLE2 X 100
D49: =F14 -> VARIABLE 1 | F49: =G14 -> VARIABLE 2
D50: =F15 -> Número de usuarios en atención ambulatoria que manifestaron una calificación de percepción de satisfacción de la calidad de la atención recibida superior a 80 puntos | F50: =G15 -> Total de usuarios en atención ambulatoria encuestados x 100

Sheet E023 IND 4
B1: COMISION COORDINADORA DE INSTITUTOS NACIONALES DE SALUD
B2: Y HOSPITALES DE ALTA ESPECIALIDAD
B3: Coordinación de Proyectos Estratégicos | E3: MATRIZ DE INDICADORES PARA RESULTADOS (MIR) 2016
E4: PP: E023 "ATENCIÓN A LA SALUD"
E6: EVOLUCIÓN EN EL PERIODO
B8: Clave entidad/unidad: NCA
B10: Entidad/unidad: INSTITUTO NACIONAL DE CARDIOLOGÍA IGNACIO CHÁVEZ
B14: 4 | C14: LINEA BASE INDICADOR | E14: INDICADOR | F14: VARIABLE 1 | G14: VARIABLE 2
C15: AÑO | E15: Porcentaje de sesiones de rehabilitación especializadas realizadas respecto al total realizado FÓRMULA: VARIABLE1 / VARIABLE2 X 100 | F15: Número de sesiones de rehabilitación especializadas realizadas | G15: Total de sesiones de rehabilitación realizadas x 100
C16: 1/ | D16: 2016 | E16: =IF(G16=0,0,ROUND(F16/G16*100,1)) -> 83.1 | F16: 1218268 | G16: 1466618
C17: 2/ | D17: 2009 | E17: =IF(G17=0,0,ROUND(F17/G17*100,1)) -> 0
D18: 2010 | E18: =IF(G18=0,0,ROUND(F18/G18*100,1)) -> 0
D19: 2011 | E19: 0
D20: 2012 | E20: 0
D21: 2013 | E21: 0
D22: 2014 | E22: 0
D23: 2015 | E23: 0
D24: 2016 | E24: 82.6 | F24: 11913 | G24: 14417
B26: 1/ | D26: Línea base del indicador registrada en el PASH 2016: año en que empieza a operar el indicador para el programa (CCINSHAE).
B27: 2/ | D27: Línea base del indicador institucional: año en que empieza a operar el indicador para la Institución.
B28: INSTRUCTIVO
B29: I. Llenar los valores de la tabla a partir del año en que la entidad comprometió el indicador (Línea base)
B30: II. Llenar todos los ejercicios fiscales posteriores al año de la línea base hasta el año 2016 con el valor de cierre de cada ejercicio fiscal; en el caso que sea un indicador nuevo registrar el valor programado.
B31: III. Los ejercicios fiscales en que no se comprometío el indicador deberán registrar un valor de cero.
D33: =E14 -> INDICADOR | F33: Breve Explicación del comportamiento del indicador y sus variables en el periodo (desde línea base)
D34: =E15 -> Porcentaje de sesiones de rehabilitación especializadas realizadas respecto al total realizadoFÓRMULA: VARIABLE1 / VARIABLE2 X 100
D49: =F14 -> VARIABLE 1 | F49: =G14 -> VARIABLE 2
D50: =F15 -> Número de sesiones de rehabilitación especializadas realizadas | F50: =G15 -> Total de sesiones de rehabilitación realizadas x 100

Sheet E023 IND 5
B1: COMISION COORDINADORA DE INSTITUTOS NACIONALES DE SALUD
B2: Y HOSPITALES DE ALTA ESPECIALIDAD
B3: Coordinación de Proyectos Estratégicos | E3: MATRIZ DE INDICADORES PARA RESULTADOS (MIR) 2016
E4: PP: E023 "ATENCIÓN A LA SALUD"
E6: EVOLUCIÓN EN EL PERIODO
B8: Clave entidad/unidad: NCA
B10: Entidad/unidad: INSTITUTO NACIONAL DE CARDIOLOGÍA IGNACIO CHÁVEZ
B14: 5 | C14: LINEA BASE INDICADOR | E14: INDICADOR | F14: VARIABLE 1 | G14: VARIABLE 2
C15: AÑO | E15: Porcentaje de procedimientos diagnósticos ambulatorios de alta especialidad realizados FÓRMULA: VARIABLE1 / VARIABLE2 X 100 | F15: Número de procedimientos diagnósticos ambulatorios realizados considerados de alta especialidad por la institución | G15: Total de procedimientos diagnósticos realizados x 100
C16: 1/ | D16: 2016 | E16: =IF(G16=0,0,ROUND(F16/G16*100,1)) -> 37.9 | F16: 623540 | G16: 1646227
C17: 2/ | D17: 2009 | E17: =IF(G17=0,0,ROUND(F17/G17*100,1)) -> 0
D18: 2010 | E18: =IF(G18=0,0,ROUND(F18/G18*100,1)) -> 0
D19: 2011 | E19: 0
D20: 2012 | E20: 0
D21: 2013 | E21: 0
D22: 2014 | E22: 0
D23: 2015 | E23: 0
D24: 2016 | E24: 18.5 | F24: 10705 | G24: 57858
B26: 1/ | D26: Línea base del indicador registrada en el PASH 2016: año en que empieza a operar el indicador para el programa (CCINSHAE).
B27: 2/ | D27: Línea base del indicador institucional: año en que empieza a operar el indicador para la Institución.
B28: INSTRUCTIVO
B29: I. Llenar los valores de la tabla a partir del año en que la entidad comprometió el indicador (Línea base)
B30: II. Llenar todos los ejercicios fiscales posteriores al año de la línea base hasta el año 2016 con el valor de cierre de cada ejercicio fiscal; en el caso que sea un indicador nuevo registrar el valor programado.
B31: III. Los ejercicios fiscales en que no se comprometío el indicador deberán registrar un valor de cero.
D33: =E14 -> INDICADOR | F33: Breve Explicación del comportamiento del indicador y sus variables en el periodo (desde línea base)
D34: =E15 -> Porcentaje de procedimientos diagnósticos ambulatorios de alta especialidad realizadosFÓRMULA: VARIABLE1 / VARIABLE2 X 100
D49: =F14 -> VARIABLE 1 | F49: =G14 -> VARIABLE 2
D50: =F15 -> Número de procedimientos diagnósticos ambulatorios realizados considerados de alta especialidad por la institución | F50: =G15 -> Total de procedimientos diagnósticos realizados x 100

Sheet E023 IND 6
B1: COMISION COORDINADORA DE INSTITUTOS NACIONALES DE SALUD
B2: Y HOSPITALES DE ALTA ESPECIALIDAD
B3: Coordinación de Proyectos Estratégicos | E3: MATRIZ DE INDICADORES PARA RESULTADOS (MIR) 2016
E4: PP: E023 "ATENCIÓN A LA SALUD"
E6: EVOLUCIÓN EN EL PERIODO
B8: Clave entidad/unidad: NCA
B10: Entidad/unidad: INSTITUTO NACIONAL DE CARDIOLOGÍA IGNACIO CHÁVEZ
B14: 6 | C14: LINEA BASE INDICADOR | E14: INDICADOR | F14: VARIABLE 1 | G14: VARIABLE 2
C15: AÑO | E15: Porcentaje de procedimientos terapéuticos ambulatorios de alta especialidad realizados FÓRMULA: VARIABLE1 / VARIABLE2 X 100 | F15: Número de procedimientos terapéuticos ambulatorios realizados considerados de alta especialidad por la institución | G15: Total de procedimientos terapéuticos ambulatorios realizados x 100
C16: 1/ | D16: 2016 | E16: =IF(G16=0,0,ROUND((F16)/G16*100,1)) -> 60.9 | F16: 136317 | G16: 223920
C17: 2/ | D17: 2009 | E17: =IF(G17=0,0,ROUND(F17/G17*100,1)) -> 0
D18: 2010 | E18: =IF(G18=0,0,ROUND(F18/G18*100,1)) -> 0
D19: 2011 | E19: 0
D20: 2012 | E20: 0
D21: 2013 | E21: 0
D22: 2014 | E22: 0
D23: 2015 | E23: 0
D24: 2016 | E24: 0 | F24: 0 | G24: 0
B26: 1/ | D26: Línea base del indicador registrada en el PASH 2016: año en que empieza a operar el indicador para el programa (CCINSHAE).
B27: 2/ | D27: Línea base del indicador institucional: año en que empieza a operar el indicador para la Institución.
B28: INSTRUCTIVO
B29: I. Llenar los valores de la tabla a partir del año en que la entidad comprometió el indicador (Línea base)
B30: II. Llenar todos los ejercicios fiscales posteriores al año de la línea base hasta el año 2016 con el valor de cierre de cada ejercicio fiscal; en el caso que sea un indicador nuevo registrar el valor programado.
B31: III. Los ejercicios fiscales en que no se comprometío el indicador deberán registrar un valor de cero.
D33: =E14 -> INDICADOR | F33: Breve Explicación del comportamiento del indicador y sus variables en el periodo (desde línea base)
D34: =E15 -> Porcentaje de procedimientos terapéuticos ambulatorios de alta especialidad realizadosFÓRMULA: VARIABLE1 / VARIABLE2 X 100
D49: =F14 -> VARIABLE 1 | F49: =G14 -> VARIABLE 2
D50: =F15 -> Número de procedimientos terapéuticos ambulatorios realizados considerados de alta especialidad por la institución | F50: =G15 -> Total de procedimientos terapéuticos ambulatorios realizados x 100

Sheet E023 IND 7
B1: COMISION COORDINADORA DE INSTITUTOS NACIONALES DE SALUD
B2: Y HOSPITALES DE ALTA ESPECIALIDAD
B3: Coordinación de Proyectos Estratégicos | E3: MATRIZ DE INDICADORES PARA RESULTADOS (MIR) 2016
E4: PP: E023 "ATENCIÓN A LA SALUD"
E6: EVOLUCIÓN EN EL PERIODO
B8: Clave entidad/unidad: NCA
B10: Entidad/unidad: INSTITUTO NACIONAL DE CARDIOLOGÍA IGNACIO CHÁVEZ
B14: 7 | C14: LINEA BASE INDICADOR | E14: INDICADOR | F14: VARIABLE 1 | G14: VARIABLE 2
C15: AÑO | E15: Eficacia en el otorgamiento de consulta programada (primera vez, subsecuente, preconsulta) FÓRMULA: VARIABLE1 / VARIABLE2 X 100 | F15: Número de consultas realizadas (primera vez, subsecuente, preconsulta) | G15: Número de consultas programadas (primera vez, subsecuente, preconsulta) x 100
C16: 1/ | D16: 2016 | E16: =IF(G16=0,0,ROUND((F16)/G16*100,1)) -> 95.6 | F16: 3361294 | G16: 3514874
C17: 2/ | D17: 2009 | E17: =IF(G17=0,0,ROUND(F17/G17*100,1)) -> 0
D18: 2010 | E18: =IF(G18=0,0,ROUND(F18/G18*100,1)) -> 0
D19: 2011 | E19: 0
D20: 2012 | E20: 0
D21: 2013 | E21: 0
D22: 2014 | E22: 0
D23: 2015 | E23: 0
D24: 2016 | E24: 104.6 | F24: 115818 | G24: 110775
B26: 1/ | D26: Línea base del indicador registrada en el PASH 2016: año en que empieza a operar el indicador para el programa (CCINSHAE).
B27: 2/ | D27: Línea base del indicador institucional: año en que empieza a operar el indicador para la Institución.
B28: INSTRUCTIVO
B29: I. Llenar los valores de la tabla a partir del año en que la entidad comprometió el indicador (Línea base)
B30: II. Llenar todos los ejercicios fiscales posteriores al año de la línea base hasta el año 2016 con el valor de cierre de cada ejercicio fiscal; en el caso que sea un indicador nuevo registrar el valor programado.
B31: III. Los ejercicios fiscales en que no se comprometío el indicador deberán registrar un valor de cero.
D33: =E14 -> INDICADOR | F33: Breve Explicación del comportamiento del indicador y sus variables en el periodo (desde línea base)
D34: =E15 -> Eficacia en el otorgamiento de consulta programada (primera vez, subsecuente, preconsulta) FÓRMULA: VARIABLE1 / VARIABLE2 X 100
D49: =F14 -> VARIABLE 1 | F49: =G14 -> VARIABLE 2
D50: =F15 -> Número de consultas realizadas (primera vez, subsecuente, preconsulta) | F50: =G15 -> Número de consultas programadas (primera vez, subsecuente, preconsulta) x 100

Sheet E023 IND 8
B1: COMISION COORDINADORA DE INSTITUTOS NACIONALES DE SALUD
B2: Y HOSPITALES DE ALTA ESPECIALIDAD
B3: Coordinación de Proyectos Estratégicos | E3: MATRIZ DE INDICADORES PARA RESULTADOS (MIR) 2016
E4: PP: E023 "ATENCIÓN A LA SALUD"
E6: EVOLUCIÓN EN EL PERIODO
B8: Clave entidad/unidad: NCA
B10: Entidad/unidad: INSTITUTO NACIONAL DE CARDIOLOGÍA IGNACIO CHÁVEZ
B14: 8 | C14: LINEA BASE INDICADOR | E14: INDICADOR | F14: VARIABLE 1 | G14: VARIABLE 2
C15: AÑO | E15: Porcentaje de usuarios con percepción de satisfacción de la calidad de la atención médica hospitalaria recibida superior a 80 puntos FÓRMULA: VARIABLE1 / VARIABLE2 X 100 | F15: Número de usuarios en atención hospitalaria que manifestaron una calificación de percepción de satisfacción de la calidad de la atención recibida superior a 80 puntos | G15: Total de usuarios en atención hospitalaria encuestados x 100
C16: 1/ | D16: 2016 | E16: =IF(G16=0,0,ROUND((F16)/G16*100,1)) -> 87.8 | F16: 23946 | G16: 27267
C17: 2/ | D17: 2009 | E17: =IF(G17=0,0,ROUND(F17/G17*100,1)) -> 0
D18: 2010 | E18: =IF(G18=0,0,ROUND(F18/G18*100,1)) -> 0
D19: 2011 | E19: 0
D20: 2012 | E20: 0
D21: 2013 | E21: 0
D22: 2014 | E22: 0
D23: 2015 | E23: 0
D24: 2016 | E24: 89.8 | F24: 823 | G24: 916
B26: 1/ | D26: Línea base del indicador registrada en el PASH 2016: año en que empieza a operar el indicador para el programa (CCINSHAE).
B27: 2/ | D27: Línea base del indicador institucional: año en que empieza a operar el indicador para la Institución.
B28: INSTRUCTIVO
B29: I. Llenar los valores de la tabla a partir del año en que la entidad comprometió el indicador (Línea base)
B30: II. Llenar todos los ejercicios fiscales posteriores al año de la línea base hasta el año 2016 con el valor de cierre de cada ejercicio fiscal; en el caso que sea un indicador nuevo registrar el valor programado.
B31: III. Los ejercicios fiscales en que no se comprometío el indicador deberán registrar un valor de cero.
D33: =E14 -> INDICADOR | F33: Breve Explicación del comportamiento del indicador y sus variables en el periodo (desde línea base)
D34: =E15 -> Porcentaje de usuarios con percepción de satisfacción de la calidad de la atención médica hospitalaria recibida superior a 80 puntosFÓRMULA: VARIABLE1 / VARIABLE2 X 100
D49: =F14 -> VARIABLE 1 | F49: =G14 -> VARIABLE 2
D50: =F15 -> Número de usuarios en atención hospitalaria que manifestaron una calificación de percepción de satisfacción de la calidad de la atención recibida superior a 80 puntos | F50: =G15 -> Total de usuarios en atención hospitalaria encuestados x 100

Sheet E023 IND 9
B1: COMISION COORDINADORA DE INSTITUTOS NACIONALES DE SALUD
B2: Y HOSPITALES DE ALTA ESPECIALIDAD
B3: Coordinación de Proyectos Estratégicos | E3: MATRIZ DE INDICADORES PARA RESULTADOS (MIR) 2016
E4: PP: E023 "ATENCIÓN A LA SALUD"
E6: EVOLUCIÓN EN EL PERIODO
B8: Clave entidad/unidad: NCA
B10: Entidad/unidad: INSTITUTO NACIONAL DE CARDIOLOGÍA IGNACIO CHÁVEZ
B14: 9 | C14: LINEA BASE INDICADOR | E14: INDICADOR | F14: VARIABLE 1 | G14: VARIABLE 2
C15: AÑO | E15: Porcentaje de expedientes clínicos revisados aprobados conforme a la NOM SSA 004 FÓRMULA: VARIABLE1 / VARIABLE2 X 100 | F15: Número de expedientes clínicos revisados que cumplen con los criterios de la NOM SSA 004 | G15: Total de expedientes revisados por el Comité del expediente clínico institucional x 100
C16: 1/ | D16: 2012 | E16: =IF(G16=0,0,ROUND(F16/G16*100,1)) -> 71.7 | F16: 11973 | G16: 16691
C17: 2/ | D17: 2009 | E17: =IF(G17=0,0,ROUND(F17/G17*100,1)) -> 0
D18: 2010 | E18: =IF(G18=0,0,ROUND(F18/G18*100,1)) -> 0
D19: 2011 | E19: 0
D20: 2012 | E20: 74.1 | F20: 343 | G20: 463
D21: 2013 | E21: 81.7 | F21: 384 | G21: 470
D22: 2014 | E22: 89.8 | F22: 281 | G22: 313
D23: 2015 | E23: 93.4 | F23: 253 | G23: 271
D24: 2016 | E24: 96.5 | F24: 273 | G24: 283
B26: 1/ | D26: Línea base del indicador registrada en el PASH 2016: año en que empieza a operar el indicador para el programa (CCINSHAE).
B27: 2/ | D27: Línea base del indicador institucional: año en que empieza a operar el indicador para la Institución.
B28: INSTRUCTIVO
B29: I. Llenar los valores de la tabla a partir del año en que la entidad comprometió el indicador (Línea base)
B30: II. Llenar todos los ejercicios fiscales posteriores al año de la línea base hasta el año 2016 con el valor de cierre de cada ejercicio fiscal; en el caso que sea un indicador nuevo registrar el valor programado.
B31: III. Los ejercicios fiscales en que no se comprometío el indicador deberán registrar un valor de cero.
D33: =E14 -> INDICADOR | F33: Breve Explicación del comportamiento del indicador y sus variables en el periodo (desde línea base)
D34: =E15 -> Porcentaje de expedientes clínicos revisados aprobados conforme a la NOM SSA 004FÓRMULA: VARIABLE1 / VARIABLE2 X 100 | F34: Se observa un incremento en el porcentaje de expedientes clínicos aprobados conforme a la NOM SSA 004 debido a la mejora de la integración de documentos, que se deriva de la incorporación automática de notas e indicaciones médicas dentro del expediente clínico electrónico. La disminución de expedientes revisados, en los últimos periodos, ha optimizado el proceso de mejora en la revisión de los mismos pemitiendo el cumplimiento con la Norma.
D49: =F14 -> VARIABLE 1 | F49: =G14 -> VARIABLE 2
D50: =F15 -> Número de expedientes clínicos revisados que cumplen con los criterios de la NOM SSA 004 | F50: =G15 -> Total de expedientes revisados por el Comité del expediente clínico institucional x 100

Sheet E023 IND 10
B1: COMISION COORDINADORA DE INSTITUTOS NACIONALES DE SALUD
B2: Y HOSPITALES DE ALTA ESPECIALIDAD
B3: Coordinación de Proyectos Estratégicos | E3: MATRIZ DE INDICADORES PARA RESULTADOS (MIR) 2016
E4: PP: E023 "ATENCIÓN A LA SALUD"
E6: EVOLUCIÓN EN EL PERIODO
B8: Clave entidad/unidad: NCA
B10: Entidad/unidad: INSTITUTO NACIONAL DE CARDIOLOGÍA IGNACIO CHÁVEZ
B14: 10 | C14: LINEA BASE INDICADOR | E14: INDICADOR | F14: VARIABLE 1 | G14: VARIABLE 2
C15: AÑO | E15: Porcentaje de auditorías clínicas incorporadas FÓRMULA: VARIABLE1 / VARIABLE2 X 100 | F15: Número de auditorías clínicas realizadas | G15: Número de auditorías clínicas programadas x 100
C16: 1/ | D16: 2016 | E16: =IF(G16=0,0,ROUND((F16)/G16*100,1)) -> 100 | F16: 35 | G16: 35
C17: 2/ | D17: 2009 | E17: =IF(G17=0,0,ROUND(F17/G17*100,1)) -> 0
D18: 2010 | E18: =IF(G18=0,0,ROUND(F18/G18*100,1)) -> 0
D19: 2011 | E19: 0
D20: 2012 | E20: 0
D21: 2013 | E21: 0
D22: 2014 | E22: 0
D23: 2015 | E23: 0
D24: 2016 | E24: 100 | F24: 1 | G24: 1
B26: 1/ | D26: Línea base del indicador registrada en el PASH 2016: año en que empieza a operar el indicador para el programa (CCINSHAE).
B27: 2/ | D27: Línea base del indicador institucional: año en que empieza a operar el indicador para la Institución.
B28: INSTRUCTIVO
B29: I. Llenar los valores de la tabla a partir del año en que la entidad comprometió el indicador (Línea base)
B30: II. Llenar todos los ejercicios fiscales posteriores al año de la línea base hasta el año 2016 con el valor de cierre de cada ejercicio fiscal; en el caso que sea un indicador nuevo registrar el valor programado.
B31: III. Los ejercicios fiscales en que no se comprometío el indicador deberán registrar un valor de cero.
D33: =E14 -> INDICADOR | F33: Breve Explicación del comportamiento del indicador y sus variables en el periodo (desde línea base)
D34: =E15 -> Porcentaje de auditorías clínicas incorporadasFÓRMULA: VARIABLE1 / VARIABLE2 X 100
D49: =F14 -> VARIABLE 1 | F49: =G14 -> VARIABLE 2
D50: =F15 -> Número de auditorías clínicas realizadas | F50: =G15 -> Número de auditorías clínicas programadas x 100

Sheet E023 IND 11
B1: COMISION COORDINADORA DE INSTITUTOS NACIONALES DE SALUD
B2: Y HOSPITALES DE ALTA ESPECIALIDAD
B3: Coordinación de Proyectos Estratégicos | E3: MATRIZ DE INDICADORES PARA RESULTADOS (MIR) 2016
E4: PP: E023 "ATENCIÓN A LA SALUD"
E6: EVOLUCIÓN EN EL PERIODO
B8: Clave entidad/unidad: NCA
B10: Entidad/unidad: INSTITUTO NACIONAL DE CARDIOLOGÍA IGNACIO CHÁVEZ
B14: 11 | C14: LINEA BASE INDICADOR | E14: INDICADOR | F14: VARIABLE 1 | G14: VARIABLE 2
C15: AÑO | E15: Porcentaje de ocupación hospitalaria FÓRMULA: VARIABLE1 / VARIABLE2 X 100 | F15: Número de días paciente durante el período | G15: Número de días cama durante el período x 100
C16: 1/ | D16: 2009 | E16: =IF(G16=0,0,ROUND(F16/G16*100,1)) -> 74.2 | F16: 1160535 | G16: 1564679
C17: 2/ | D17: 2009 | E17: =IF(G17=0,0,ROUND(F17/G17*100,1)) -> 71.7 | F17: 54194 | G17: 75555
D18: 2010 | E18: =IF(G18=0,0,ROUND(F18/G18*100,1)) -> 69.1 | F18: 53747 | G18: 77745
D19: 2011 | E19: 66.7 | F19: 51832 | G19: 77745
D20: 2012 | E20: 78.7 | F20: 61331 | G20: 77958
D21: 2013 | E21: 78.8 | F21: 61259 | G21: 77745
D22: 2014 | E22: 80.4 | F22: 62521 | G22: 77745
D23: 2015 | E23: 80 | F23: 62167 | G23: 77745
D24: 2016 | E24: 80.8 | F24: 62969 | G24: 77958
B26: 1/ | D26: Línea base del indicador registrada en el PASH 2016: año en que empieza a operar el indicador para el programa (CCINSHAE).
B27: 2/ | D27: Línea base del indicador institucional: año en que empieza a operar el indicador para la Institución.
B28: INSTRUCTIVO
B29: I. Llenar los valores de la tabla a partir del año en que la entidad comprometió el indicador (Línea base)
B30: II. Llenar todos los ejercicios fiscales posteriores al año de la línea base hasta el año 2016 con el valor de cierre de cada ejercicio fiscal; en el caso que sea un indicador nuevo registrar el valor programado.
B31: III. Los ejercicios fiscales en que no se comprometío el indicador deberán registrar un valor de cero.
D33: =E14 -> INDICADOR | F33: Breve Explicación del comportamiento del indicador y sus variables en el periodo (desde línea base)
D34: =E15 -> Porcentaje de ocupación hospitalariaFÓRMULA: VARIABLE1 / VARIABLE2 X 100 | F34: El porcentaje de ocupación hospitalaria se ha mantenido constante en los últimos periodos (2012 - 2015). Cabe mencionar que la capacidad instalada para la asistencia institucional ha llegado a su límite, debido al crecimiento en la demanda de atención especializada, de la población con patologías cardiológicas de alta complejidad
D49: =F14 -> VARIABLE 1 | F49: =G14 -> VARIABLE 2
D50: =F15 -> Número de días paciente durante el período | F50: =G15 -> Número de días cama durante el período x 100

Sheet E023 IND 12
B1: COMISION COORDINADORA DE INSTITUTOS NACIONALES DE SALUD
B2: Y HOSPITALES DE ALTA ESPECIALIDAD
B3: Coordinación de Proyectos Estratégicos | E3: MATRIZ DE INDICADORES PARA RESULTADOS (MIR) 2016
E4: PP: E023 "ATENCIÓN A LA SALUD"
E6: EVOLUCIÓN EN EL PERIODO
B8: Clave entidad/unidad: NCA
B10: Entidad/unidad: INSTITUTO NACIONAL DE CARDIOLOGÍA IGNACIO CHÁVEZ
B14: 12 | C14: LINEA BASE INDICADOR | E14: INDICADOR | F14: VARIABLE 1 | G14: VARIABLE 2
C15: AÑO | E15: Promedio de días estancia FÓRMULA: VARIABLE1 / VARIABLE2 | F15: Número de días estancia | G15: Total de egresos hospitalarios
C16: 1/ | D16: 2016 | E16: =IF(G16=0,0,ROUND((F16)/G16*1,1)) -> 7 | F16: 1257099 | G16: 180010
C17: 2/ | D17: 2009 | E17: =IF(G17=0,0,ROUND(F17/G17*1,1)) -> 0
D18: 2010 | E18: =IF(G18=0,0,ROUND(F18/G18*1,1)) -> 0
D19: 2011 | E19: 0
D20: 2012 | E20: 0
D21: 2013 | E21: 0
D22: 2014 | E22: 0
D23: 2015 | E23: 0
D24: 2016 | E24: 10.2 | F24: 58861 | G24: 5792
B26: 1/ | D26: Línea base del indicador registrada en el PASH 2016: año en que empieza a operar el indicador para el programa (CCINSHAE).
B27: 2/ | D27: Línea base del indicador institucional: año en que empieza a operar el indicador para la Institución.
B28: INSTRUCTIVO
B29: I. Llenar los valores de la tabla a partir del año en que la entidad comprometió el indicador (Línea base)
B30: II. Llenar todos los ejercicios fiscales posteriores al año de la línea base hasta el año 2016 con el valor de cierre de cada ejercicio fiscal; en el caso que sea un indicador nuevo registrar el valor programado.
B31: III. Los ejercicios fiscales en que no se comprometío el indicador deberán registrar un valor de cero.
D33: =E14 -> INDICADOR | F33: Breve Explicación del comportamiento del indicador y sus variables en el periodo (desde línea base)
D34: =E15 -> Promedio de días estancia FÓRMULA: VARIABLE1 / VARIABLE2
D49: =F14 -> VARIABLE 1 | F49: =G14 -> VARIABLE 2
D50: =F15 -> Número de días estancia | F50: =G15 -> Total de egresos hospitalarios

Sheet E023 IND 13
B1: COMISION COORDINADORA DE INSTITUTOS NACIONALES DE SALUD
B2: Y HOSPITALES DE ALTA ESPECIALIDAD
B3: Coordinación de Proyectos Estratégicos | E3: MATRIZ DE INDICADORES PARA RESULTADOS (MIR) 2016
E4: PP: E023 "ATENCIÓN A LA SALUD"
E6: EVOLUCIÓN EN EL PERIODO
B8: Clave entidad/unidad: NCA
B10: Entidad/unidad: INSTITUTO NACIONAL DE CARDIOLOGÍA IGNACIO CHÁVEZ
B14: 13 | C14: LINEA BASE INDICADOR | E14: INDICADOR | F14: VARIABLE 1 | G14: VARIABLE 2
C15: AÑO | E15: Proporción de consultas de primera vez respecto a preconsultas FÓRMULA: VARIABLE1 / VARIABLE2 X 100 | F15: Número de consultas de primera vez otorgadas en el periodo | G15: Número de preconsultas otorgadas en el periodo x 100
C16: 1/ | D16: 2016 | E16: =IF(G16=0,0,ROUND(F16/G16*100,1)) -> 69.7 | F16: 178880 | G16: 256548
C17: 2/ | D17: 2009 | E17: =IF(G17=0,0,ROUND(F17/G17*100,1)) -> 0
D18: 2010 | E18: =IF(G18=0,0,ROUND(F18/G18*100,1)) -> 0
D19: 2011 | E19: 0
D20: 2012 | E20: 0
D21: 2013 | E21: 0
D22: 2014 | E22: 0
D23: 2015 | E23: 0
D24: 2016 | E24: 84.5 | F24: 4839 | G24: 5725
B26: 1/ | D26: Línea base del indicador registrada en el PASH 2016: año en que empieza a operar el indicador para el programa (CCINSHAE).
B27: 2/ | D27: Línea base del indicador institucional: año en que empieza a operar el indicador para la Institución.
B28: INSTRUCTIVO
B29: I. Llenar los valores de la tabla a partir del año en que la entidad comprometió el indicador (Línea base)
B30: II. Llenar todos los ejercicios fiscales posteriores al año de la línea base hasta el año 2016 con el valor de cierre de cada ejercicio fiscal; en el caso que sea un indicador nuevo registrar el valor programado.
B31: III. Los ejercicios fiscales en que no se comprometío el indicador deberán registrar un valor de cero.
D33: =E14 -> INDICADOR | F33: Breve Explicación del comportamiento del indicador y sus variables en el periodo (desde línea base)
D34: =E15 -> Proporción de consultas de primera vez respecto a preconsultasFÓRMULA: VARIABLE1 / VARIABLE2 X 100
D49: =F14 -> VARIABLE 1 | F49: =G14 -> VARIABLE 2
D50: =F15 -> Número de consultas de primera vez otorgadas en el periodo | F50: =G15 -> Número de preconsultas otorgadas en el periodo x 100

Sheet E023 IND 14
B1: COMISION COORDINADORA DE INSTITUTOS NACIONALES DE SALUD
B2: Y HOSPITALES DE ALTA ESPECIALIDAD
B3: Coordinación de Proyectos Estratégicos | E3: MATRIZ DE INDICADORES PARA RESULTADOS (MIR) 2016
E4: PP: E023 "ATENCIÓN A LA SALUD"
E6: EVOLUCIÓN EN EL PERIODO
B8: Clave entidad/unidad: NCA
B10: Entidad/unidad: INSTITUTO NACIONAL DE CARDIOLOGÍA IGNACIO CHÁVEZ
B14: 14 | C14: LINEA BASE INDICADOR | E14: INDICADOR | F14: VARIABLE 1 | G14: VARIABLE 2
C15: AÑO | E15: Tasa de infección nosocomial (por mil días de estancia hospitalaria) FÓRMULA: VARIABLE1 / VARIABLE2 X 1000 | F15: Número de episodios de infecciones nosocomiales registrados en el periodo de reporte | G15: Total de días estancia en el periodo de reporte x 1000
C16: 1/ | D16: 2015 | E16: =IF(G16=0,0,ROUND(F16/G16*1000,1)) -> 7.6 | F16: 8331 | G16: 1093170
C17: 2/ | D17: 2009 | E17: =IF(G17=0,0,ROUND(F17/G17*1000,1)) -> 0
D18: 2010 | E18: =IF(G18=0,0,ROUND(F18/G18*1000,1)) -> 0
D19: 2011 | E19: 0
D20: 2012 | E20: 0
D21: 2013 | E21: 0
D22: 2014 | E22: 0
D23: 2015 | E23: 4.7 | F23: 271 | G23: 57272
D24: 2016 | E24: 4.4 | F24: 257 | G24: 58861
B26: 1/ | D26: Línea base del indicador registrada en el PASH 2016: año en que empieza a operar el indicador para el programa (CCINSHAE).
B27: 2/ | D27: Línea base del indicador institucional: año en que empieza a operar el indicador para la Institución.
B28: INSTRUCTIVO
B29: I. Llenar los valores de la tabla a partir del año en que la entidad comprometió el indicador (Línea base)
B30: II. Llenar todos los ejercicios fiscales posteriores al año de la línea base hasta el año 2016 con el valor de cierre de cada ejercicio fiscal; en el caso que sea un indicador nuevo registrar el valor programado.
B31: III. Los ejercicios fiscales en que no se comprometío el indicador deberán registrar un valor de cero.
D33: =E14 -> INDICADOR | F33: Breve Explicación del comportamiento del indicador y sus variables en el periodo (desde línea base)
D34: =E15 -> Tasa de infección nosocomial (por mil días de estancia hospitalaria)FÓRMULA: VARIABLE1 / VARIABLE2 X 1000
D49: =F14 -> VARIABLE 1 | F49: =G14 -> VARIABLE 2
D50: =F15 -> Número de episodios de infecciones nosocomiales registrados en el periodo de reporte | F50: =G15 -> Total de días estancia en el periodo de reporte x 1000
